Cogmind - Beta 13 @@@ ROGUE MODE // 2024.07.12 @ 22:16:50 Player: saltine Result: Destroyed by H-61 Shepherd with Heavy Assault Cannon Performance ------------- Evolutions (3) 1500 Regions Visited (6) 1200 Robots Destroyed (36) 180 Value Destroyed (1282) 1282 Prototype IDs (26) 520 Alien Tech Used (0) 0 Bonus (300) 300 TOTAL SCORE: 4982 Bonus ------- Aligned with FarCom 300 Cogmind --------- Core Integrity 0/700 Matter 300/300 Energy 100/100 System Corruption 6% Temperature Cool (21) Movement Core (50) Location -7/Factory Parts ------- > --- POWER (1) -------- (None) > --- PROPULSION (5) --- (None) > --- UTILITY (5) ------ (None) > --- WEAPON (2) ------- (None) > --- INVENTORY (5) ---- Micro Nuclear Core High-powered Tractor Beam Medium Laser Grenade Launcher Mini Grenade Launcher Peak State ------------ > --- POWER ------------ (None) > --- PROPULSION ------- Light Treads > --- UTILITY ---------- Large Storage Unit Visual Processing Unit Improved Medium Armor Plating Hacking Suite > --- WEAPON ----------- High-powered Shotgun Mini Assault Cannon > --- INVENTORY -------- Light Nuclear Core Micro Nuclear Core Compact Wheel Compact Wheel Heat Sink Improved Heat Sink Improved Heat Sink Small Storage Unit Cloak of Protection High-powered Tractor Beam Medium Laser Light Assault Rifle Assault Cannon Grenade Launcher Mini Grenade Launcher [Rating: 22] Favorites ----------- Power Light Ion Engine Engine Light Ion Engine Power Core Light Nuclear Core Propulsion Light Treads Treads Light Treads Wheel Compact Wheel Utility Visual Processing Unit Storage Large Storage Unit Processor Visual Processing Unit Hackware Hacking Suite Protection Improved Medium Armor Plating Weapon Light Assault Rifle Ballistic Gun Light Assault Rifle Ballistic Cannon Mini Assault Cannon Launcher Grenade Launcher Build | -11 -10 -10 -10 -9 -8 -7 ------- Run | Yrd Mat Min Exi Min Mat Fac Slots Evolved 6 | . . . . . 4 2 Power . | . . . . . . . Propulsion 3 | . . . . . 2 1 Utility 3 | . . . . . 2 1 Weapon . | . . . . . . . Parts Attached 26 | 6 2 . . . 11 7 Power 4 | 1 . . . . 2 1 Engine 3 | 1 . . . . 1 1 Core 1 | . . . . . 1 . Reactor . | . . . . . . . Propulsion 6 | 2 . . . . 2 2 Treads 5 | 2 . . . . 2 1 Leg . | . . . . . . . Wheel 1 | . . . . . . 1 Hover . | . . . . . . . Flight . | . . . . . . . Utility 7 | 1 2 . . . 2 2 Device . | . . . . . . . Storage 2 | 1 1 . . . . . Processor 1 | . 1 . . . . . Hackware 1 | . . . . . 1 . Protection 3 | . . . . . 1 2 Artifact . | . . . . . . . Weapon 9 | 2 . . . . 5 2 Energy Gun . | . . . . . . . Energy Cannon . | . . . . . . . Ballistic Gun 6 | 2 . . . . 3 1 Ballistic Cannon 1 | . . . . . . 1 Launcher 2 | . . . . . 2 . Special Weapon . | . . . . . . . Impact Weapon . | . . . . . . . Slashing Weapon . | . . . . . . . Piercing Weapon . | . . . . . . . Special Melee Weapon . | . . . . . . . Unidentified Prototypes 1 | . . . . . . 1 Parts Lost 17 | . . . . . 6 11 Power 4 | . . . . . 3 1 Propulsion 6 | . . . . . 2 4 Utility 3 | . . . . . . 3 Weapon 4 | . . . . . 1 3 Highest Loss Streak 4 | . . . . . 2 4 To Critical Strikes . | . . . . . . . Average Slot Usage (%) 77 | . 96 100 100 100 72 52 Engine 7 | . 14 14 14 14 2 1 Treads 18 | . 28 28 28 28 17 7 Storage 10 | . 14 14 14 14 9 6 Processor 10 | . 10 14 14 14 9 6 Hackware 4 | . . . . . 8 6 Protection 4 | . . . . . 6 9 Ballistic Gun 19 | . 28 28 28 28 17 9 Naked Turns 8 | . . . . . . 8 Heaviest Build 37 | 10 25 25 25 25 32 37 Greatest Support 60 | 40 40 40 40 40 60 40 Greatest Overweight (x) 2 | . . . . . 1 2 Average Overweight (x) . | . . . . . . . Largest Inventory Capacity 15 | 8 15 15 15 15 15 15 Average Capacity 14 | 7 9 15 15 15 15 14 Most Carried 15 | 4 8 8 9 10 14 15 Average Carried 10 | 2 5 8 8 9 11 14 Final Capacity 15 | 8 15 15 15 15 15 5 Final Carried 14 | 4 8 8 9 10 14 5 Class Distribution -------------------- 94% | Mutant 5% | Scavenger-Mutant Dominant Class ---------------- Mutant | -10/Materials Mutant | -10/Mines Mutant | -10/Exiles Mutant | -9/Mines Mutant | -8/Materials Mutant | -7/Factory Resources | -11 -10 -10 -10 -9 -8 -7 ----------- Run | Yrd Mat Min Exi Min Mat Fac Matter Collected 832 | 233 77 16 . 8 216 282 Remotely . | . . . . . . . Salvage Created 987 | . 220 . . 33 317 417 Parts 68 | . 15 . . 5 26 22 Haulers Intercepted . | . . . . . . . Recyclers Shooed . | . . . . . . . Parts Field Recycled . | . . . . . . . Retrieved Matter . | . . . . . . . Parts Self-Destructed . | . . . . . . . Prevented . | . . . . . . . Kills | -11 -10 -10 -10 -9 -8 -7 ------- Run | Yrd Mat Min Exi Min Mat Fac Combat Hostiles Destroyed 33 | . 7 . . 3 11 12 Guns 28 | . 7 . . 3 6 12 AOE 5 | . . . . . 5 . Classes Destroyed 9 | . 2 . . . 5 2 Worker 1 | . . . . . 1 . Builder 1 | . . . . . . 1 Watcher 1 | . . . . . 1 . Swarmer 13 | . 3 . . 3 4 3 Grunt 13 | . 4 . . . 2 7 Duelist 1 | . . . . . 1 . Sentry 3 | . . . . . 2 1 Hunter 2 | . . . . . 2 . Programmer 1 | . . . . . . 1 Best Kill Streak 7 | . 3 . . 3 5 7 Combat Bots Only 6 | . 3 . . 3 4 6 Max Kills in Single Turn 3 | . 1 . . 1 3 1 Gunslinging . | . . . . . . . Exploded 3 | . . . . . 3 . Melee . | . . . . . . . Uniques/NPCs Destroyed . | . . . . . . . Combat | -11 -10 -10 -10 -9 -8 -7 -------- Run | Yrd Mat Min Exi Min Mat Fac Hostile Shots Fired 275 | . 35 . . 11 69 160 Missed 82 | . 12 . . 6 19 45 Damage Taken 2960 | . 232 . . 42 778 1908 Core 886 | . 33 . . . 144 709 Absorbed by Shields . | . . . . . . . Core Remaining (%) 86 | 100 . . . 86 73 . Volleys Fired 107 | . 23 . . 4 35 45 Largest 2 | . 2 . . 2 2 2 Hottest 53 | . 40 . . 40 50 53 Shots Fired 189 | . 46 . . 8 69 66 Gun 181 | . 46 . . 8 61 66 Cannon . | . . . . . . . Launcher 8 | . . . . . 8 . Special . | . . . . . . . Kinetic 181 | . 46 . . 8 61 66 Thermal . | . . . . . . . Explosive 8 | . . . . . 8 . Electromagnetic . | . . . . . . . Robot Hit Streak 16 | . 8 . . 1 16 7 Robot Miss Streak 7 | . 4 . . 2 3 7 Penetration Max . | . . . . . . . Secondary Targets 3 | . 1 . . 1 . 1 Max Gunslinging Chain 1 | . 1 . . 1 . 1 Shots Hit Robots 132 | . 29 . . 3 51 49 Core Hits 86 | . 13 . . 3 33 37 Critical Kills . | . . . . . . . Critical Parts Destroyed 1 | . . . . . 1 . Critical Strikes 1 | . . . . . 1 . Destroy 1 | . . . . . 1 . Melee Attacks . | . . . . . . . Impact . | . . . . . . . Slashing . | . . . . . . . Piercing . | . . . . . . . Sneak Attacks . | . . . . . . . Combat Hostiles . | . . . . . . . Follow-up Attacks . | . . . . . . . Damage Inflicted 2230 | . 247 . . 35 993 955 Guns 1550 | . 247 . . 35 338 930 Cannons . | . . . . . . . Explosions 655 | . . . . . 655 . Melee . | . . . . . . . Ramming 25 | . . . . . . 25 Kinetic 1550 | . 247 . . 35 338 930 Thermal . | . . . . . . . Explosive 655 | . . . . . 655 . Electromagnetic . | . . . . . . . Impact . | . . . . . . . Slashing . | . . . . . . . Piercing . | . . . . . . . Highest Corruption 6 | . . . . . . 6 Average Corruption 3 | . . . . . . 3 Corruption Purged . | . . . . . . . Corruption Blocked . | . . . . . . . Effects 11 | . . . . . . 11 Message Errors 7 | . . . . . . 7 Matter Fused 1 | . . . . . . 1 Heat Flow Errors 1 | . . . . . . 1 Energy Discharges 2 | . . . . . . 2 Overload Shots . | . . . . . . . Overflow Damage 122 | . . . . . 39 83 Projectiles . | . . . . . . . Explosions 122 | . . . . . 39 83 Melee . | . . . . . . . Knockbacks 1 | . . . . . . 1 Impact 1 | . . . . . . 1 Kinetic . | . . . . . . . Secondary . | . . . . . . . Self-Inflicted Damage 335 | . . . . . 97 238 Shots 6 | . . . . . 3 3 Rammed 6 | . . . . . . 6 Targets Rammed 6 | . . . . . . 6 Kicked . | . . . . . . . Crushed . | . . . . . . . Highest Temperature 203 | . 22 . . . 53 203 Average Temperature 23 | . 9 . . . 26 38 Received Heat Transfer 789 | . 102 . . . 135 552 Siege Activations . | . . . . . . . Robots Corrupted . | . . . . . . . Combat Hostiles . | . . . . . . . Parts Fried . | . . . . . . . Impact Corruptions . | . . . . . . . Robots Melted . | . . . . . . . Combat Hostiles . | . . . . . . . Parts Melted . | . . . . . . . Heat Transferred . | . . . . . . . Parts Sabotaged . | . . . . . . . Parts Stolen . | . . . . . . . Parts Stripped . | . . . . . . . Power Chain Reactions . | . . . . . . . Alert | -11 -10 -10 -10 -9 -8 -7 ------- Run | Yrd Mat Min Exi Min Mat Fac Peak Influence 374 | . 173 67 . 70 374 360 Initial 67 | . . 67 . . 27 10 Average 87 | . 48 67 . 67 160 71 Maximum Alert Level 1 | . . . . . 1 1 Low Security (%) 82 | 100 100 100 . 100 53 85 Level 1 17 | . . . . . 46 14 Level 2 . | . . . . . . . Level 3 . | . . . . . . . Level 4 . | . . . . . . . Level 5 . | . . . . . . . High Security . | . . . . . . . Max Security . | . . . . . . . Squads Dispatched 8 | . 1 . . . 1 6 Investigation 5 | . . . . . . 5 Extermination 1 | . . . . . . 1 Reinforcement 2 | . 1 . . . 1 . Assault . | . . . . . . . Garrison . | . . . . . . . Intercept . | . . . . . . . Searches Triggered . | . . . . . . . Construction Impeded . | . . . . . . . Haulers Reinforced . | . . . . . . . Active Scanning Responses . | . . . . . . . Cargo Convoy Interrupts . | . . . . . . . Stealth | -11 -10 -10 -10 -9 -8 -7 --------- Run | Yrd Mat Min Exi Min Mat Fac Distress Signals 8 | . 2 . . . 3 3 Communications Jammed . | . . . . . . . Distress Signals . | . . . . . . . Times Spotted 51 | . 11 . . 4 15 21 Peak Tracking Total 5 | . 5 . . 4 5 5 Tactical Retreats . | . . . . . . . Traps | -11 -10 -10 -10 -9 -8 -7 ------- Run | Yrd Mat Min Exi Min Mat Fac Traps Triggered 2 | . . . . . . 2 Indirectly . | . . . . . . . Trap Hack Attempts . | . . . . . . . Triggered . | . . . . . . . Disarmed . | . . . . . . . Reprogrammed . | . . . . . . . Reused . | . . . . . . . Traps Extracted . | . . . . . . . Installed . | . . . . . . . Triggered . | . . . . . . . Machines | -11 -10 -10 -10 -9 -8 -7 ---------- Run | Yrd Mat Min Exi Min Mat Fac Machines Disabled 3 | . . . . . . 3 Max in Single Turn 2 | . . . . . . 2 Machines Repaired . | . . . . . . . Machines Dismantled . | . . . . . . . Machines Sabotaged 2 | . . . . . . 2 Overloaded Fab Kills . | . . . . . . . Hacking | -11 -10 -10 -10 -9 -8 -7 --------- Run | Yrd Mat Min Exi Min Mat Fac Machines Accessed 12 | . 2 . 2 . 2 6 Terminals 8 | . 2 . . . 2 4 Fabricators 2 | . . . . . . 2 Repair Stations . | . . . . . . . Recycling Units . | . . . . . . . Scanalyzers . | . . . . . . . Garrison Access . | . . . . . . . Total Hacks 32 | . 9 . 5 . 6 12 Successful 22 | . 6 . 5 . 4 7 Failed 10 | . 3 . . . 2 5 Catastrophic 1 | . . . . . . 1 Database Lockouts . | . . . . . . . Manual 13 | . 2 . 1 . . 10 Terminals 22 | . 9 . . . 6 7 Fabricators 5 | . . . . . . 5 Repair Stations . | . . . . . . . Recycling Units . | . . . . . . . Scanalyzers . | . . . . . . . Garrison Access . | . . . . . . . Terminal Hacks 17 | . 6 . 5 . 4 2 Record 5 | . 1 . 4 . . . Prototype ID Bank 1 | . . . . . 1 . Emergency Access Points 1 | . . . . . . 1 Alert Level 2 | . 1 . . . 1 . Unreport Threat 1 | . . . . . 1 . Locate Traps 1 | . 1 . . . . . Dispatch Records 1 | . . . . . 1 . Security Status 1 | . 1 . . . . . Hauler Manifests 2 | . 1 . . . . 1 Zone Layout 1 | . 1 . . . . . Derelict Proto ID Bank 1 | . . . 1 . . . Fabricator Hacks 1 | . . . . . . 1 Network Status 1 | . . . . . . 1 Repair Station Hacks . | . . . . . . . Recycling Unit Hacks . | . . . . . . . Scanalyzer . | . . . . . . . Garrison Access Hacks . | . . . . . . . Unauthorized Hacks 4 | . . . . . . 4 Terminals 3 | . . . . . . 3 Sabotage 2 | . . . . . . 2 Search 1 | . . . . . . 1 Fabricators 1 | . . . . . . 1 Overload 1 | . . . . . . 1 Repair Stations . | . . . . . . . Recycling Units . | . . . . . . . Scanalyzers . | . . . . . . . Garrison Access . | . . . . . . . Data Cores Recovered . | . . . . . . . Used . | . . . . . . . Hacking Detections 6 | . 2 . . . 2 2 Full Trace Events 1 | . . . . . . 1 Feedback Events . | . . . . . . . Feedback Blocked . | . . . . . . . Robot Schematics Acquired . | . . . . . . . Robots Built . | . . . . . . . Authchips . | . . . . . . . Time . | . . . . . . . Total Robot Build Rating . | . . . . . . . Part Schematics Acquired . | . . . . . . . Parts Built . | . . . . . . . Authchips . | . . . . . . . Time . | . . . . . . . Total Part Build Rating . | . . . . . . . Parts Repaired . | . . . . . . . Time . | . . . . . . . Parts Recycled . | . . . . . . . Recycled Matter . | . . . . . . . Retrieved Matter . | . . . . . . . Retrieved Components . | . . . . . . . Parts Scanalyzed . | . . . . . . . Part Schematics Acquired . | . . . . . . . Parts Damaged . | . . . . . . . Bothacking | -11 -10 -10 -10 -9 -8 -7 ------------ Run | Yrd Mat Min Exi Min Mat Fac Used RIF Installer . | . . . . . . . Robots Hacked . | . . . . . . . Non-combat . | . . . . . . . Combat . | . . . . . . . Robot Hacks Applied . | . . . . . . . Relay Couplers Released . | . . . . . . . Fabnet Peak Effective % . | . . . . . . . Robots Rewired . | . . . . . . . Allies Hacked . | . . . . . . . Hacks Repelled . | . . . . . . . Allies | -11 -10 -10 -10 -9 -8 -7 -------- Run | Yrd Mat Min Exi Min Mat Fac Total Allies . | . . . . . . . Largest Group . | . . . . . . . Highest-Rated Group . | . . . . . . . Highest-Rated Ally . | . . . . . . . Total Orders . | . . . . . . . Ally Attacks . | . . . . . . . Total Damage . | . . . . . . . Kills . | . . . . . . . Allies Corrupted . | . . . . . . . Allies Melted . | . . . . . . . Intel | -11 -10 -10 -10 -9 -8 -7 ------- Run | Yrd Mat Min Exi Min Mat Fac Robot Analysis Total . | . . . . . . . Derelict Logs Recovered 1 | . . 1 . . . . Drone Launches . | . . . . . . . Drone Recoveries . | . . . . . . . Exploration | -11 -10 -10 -10 -9 -8 -7 ------------- Run | Yrd Mat Min Exi Min Mat Fac Turns Passed 2392 | 75 273 136 409 207 490 802 Spaces Moved 1184 | 43 130 81 256 118 221 335 Core 14 | 5 . . . . . 9 Treads 1100 | 38 130 81 256 118 221 256 Legs . | . . . . . . . Wheels 70 | . . . . . . 70 Hover . | . . . . . . . Flight . | . . . . . . . Fastest Speed 50 | 50 160 160 160 160 160 50 Average Speed 170 | 147 160 160 160 160 170 190 Slowest Speed 240 | 160 160 160 160 160 240 240 Overloaded Moves . | . . . . . . . Propulsion Burnouts . | . . . . . . . Robots Hopped . | . . . . . . . Cave-ins Triggered . | . . . . . . . Exploration Rate (%) 27 | 3 30 29 63 34 21 13 Regions Visited 6 Branch Regions 3 Pre-discovered Areas 1 | . . . 1 . . . Known Exits Taken . | . . . . . . . Unknown Exits Taken 6 | 1 1 1 1 1 1 . Scrap Searched 1 | . . . . 1 . . Spaces Dug . | . . . . . . . Terrain Destroyed 107 | . . . . . 63 44 Melee . | . . . . . . . Projectile . | . . . . . . . AOE 107 | . . . . . 63 44 Terrain Rammed . | . . . . . . . Walls Destroyed . | . . . . . . . Machines Disabled . | . . . . . . . Actions | -11 -10 -10 -10 -9 -8 -7 --------- Run | Yrd Mat Min Exi Min Mat Fac Total 1389 | 52 157 88 256 130 273 433 Wait 54 | . . 8 . 8 1 37 Move 1178 | 42 129 80 255 117 220 335 Hop . | . . . . . . . Pick Up 17 | 4 3 . 1 1 6 2 Fast Attach 17 | 6 1 . . . 5 5 Attach 4 | . . . . . 2 2 Detach . | . . . . . . . Swap 5 | . 1 . . . 4 . Drop 1 | . . . . . . 1 Fire 107 | . 23 . . 4 35 45 Melee . | . . . . . . . Ram 6 | . . . . . . 6 Kick . | . . . . . . . Crush . | . . . . . . . Escape Stasis . | . . . . . . . Rewire . | . . . . . . . Trap . | . . . . . . . Miscellaneous . | . . . . . . . Route ------- -11/Scrapyard -10/Materials -10/Mines -10/Exiles (discovered 2 exits: [*Min x2]) -9/Mines -8/Materials -7/Factory (discovered 1 exit: [*Fac]) History --------- Turn | Location | Event 38 | -11/Scrapyard | Discovered new exit (range 16) 76 | -11/Scrapyard | Entered Materials 318 | -10/Materials | Build established: Mutant 318 | -10/Materials | Discovered new exit (range 7) 349 | -10/Materials | Entered Mines 389 | -10/Mines | Learned Materials terminal intel 477 | -10/Mines | Deemed a non-threat by the Exiles lab entrance 479 | -10/Mines | Discovered new exit (range 5) 485 | -10/Mines | Entered Exiles 506 | -10/Exiles | Discovered new exit (range 16) 529 | -10/Exiles | Met 8R-AWN 551 | -10/Exiles | Met EX-HEX 609 | -10/Exiles | Met EX-BIN 633 | -10/Exiles | Aligned with FarCom system 634 | -10/Exiles | Given EX-Vault access code 673 | -10/Exiles | Opened EX-Vault 684 | -10/Exiles | Found Cloak of Protection 730 | -10/Exiles | Warned to stay clear of 0b10 Research branches 771 | -10/Exiles | Met EX-DEC 781 | -10/Exiles | Learned location of Zion (-6) 882 | -10/Exiles | Discovered new exit (range 10) 894 | -10/Exiles | Left Exiles lab with Cloak of Protection 894 | -10/Exiles | Entered Mines 1075 | -9/Mines | Discovered new exit (range 9) 1101 | -9/Mines | Entered Materials 1101 | -8/Materials | Evolved 4 slots: Propulsion x2, Utility x2 1102 | -8/Materials | Loaded intel: 12 terminal locations 1543 | -8/Materials | Discovered new exit (range 5) 1591 | -8/Materials | Entered Factory 1591 | -7/Factory | Evolved 2 slots: Propulsion x1, Utility x1 1795 | -7/Factory | Lost 4 parts (1p1n1u1w) 2380 | -7/Factory | Discovered new exit (range 11) 2385 | -7/Factory | Released all parts (3) 2390 | -7/Factory | Core integrity fell below 50% 2392 | -7/Factory | Core integrity fell below 20% 2393 | -7/Factory | Destroyed by H-61 Shepherd with Heavy Assault Cannon Last Messages --------------- 02382_ ALERT: Suspicious activity at Fabricator F002. Dispatching Investigation squad. 02383_ Flak Gun destroyed. 02383_ Fabricator disabled. 02385_ Com. Wheel destroyed. 02385_ Knocked back. 02385_ Released Hacking Suite. 02385_ Released Lrg. Storage Unit. 02385_ Released Visual Processing Unit. 02385_ K-01 Serf collects debris. 02388_ MELM7XAGPCG